bitfinex-derivatives/quotes_SOLF0:USTF0_20250424
["timestamp","ask_amount","ask_price","bid_price","bid_amount"]
[1745519566716,6.5814,151.9,151.85,6.5833]
[1745519566918,25.7,151.93,151.83,64.11417027]
[1745519567309,38.41417027,151.92,151.83,25.7]
[1745519567619,40.26117027,151.94,151.83,64.11417027]
[1745519567917,1.847,151.94,151.83,64.11417027]
[1745519568318,6.5808,151.91,151.86,6.5826]
[1745519568519,1.847,151.94,151.83,64.11417027]
[1745519569320,1.847,151.94,151.83,25.7]
[1745519569621,6.5814,151.9,151.85,6.5832]
[1745519570221,6.5817,151.89,151.85,6.5832]
[1745519570822,1.847,151.94,151.83,25.7]
[1745519571019,23.75616818,151.92,151.83,25.7]
[1745519571319,6.581,151.91,151.85,23.75616818]
[1745519571619,1.847,151.94,151.85,23.75616818]
[1745519571822,6.5813,151.9,151.86,6.5827]
[1745519572014,1.847,151.94,151.85,23.75616818]
[1745519572516,1.847,151.94,151.86,6.5827]
[1745519572716,1.847,151.94,151.87,25.7]
[1745519572918,1.847,151.94,151.84,32.2837]
[1745519573222,1.847,151.94,151.84,25.7]
[1745519573619,1.847,151.94,151.84,32.2836]
[1745519573820,23.75616818,151.92,151.84,25.7]
[1745519574019,1.9379,151.91,151.84,25.7]
[1745519574323,6.5818,151.89,151.84,32.2835]
[1745519575221,6.5801,151.93,151.84,25.7]
[1745519575420,27.6024,151.97,151.85,23.75616818]
[1745519575717,6.5805,151.92,151.87,6.5821]
[1745519575921,27.6024,151.97,151.87,6.5821]
[1745519576122,27.6024,151.97,151.85,23.75616818]
[1745519577020,6.5799,151.93,151.85,23.75616818]
[1745519577222,27.6024,151.97,151.85,23.75616818]
[1745519577625,23.75616818,151.96,151.85,23.75616818]
[1745519578223,23.75616818,151.96,151.84,25.7]
[1745519578421,6.5832,151.86,151.84,25.7]
[1745519578619,23.75616818,151.9,151.81,25.7]
[1745519578819,5.7818,151.89,151.81,25.7]
[1745519580022,5.7818,151.89,151.82,6.5842]
[1745519580320,5.7818,151.89,151.81,25.7]
[1745519580621,6.5829,151.86,151.81,25.7]
[1745519581024,5.7818,151.89,151.81,25.7]
[1745519581217,23.75616818,151.87,151.81,25.7]
[1745519581414,23.75616818,151.87,151.78,0.24245]
[1745519581415,49.21616818,151.87,151.78,25.70245]
[1745519581924,6.5853,151.81,151.78,25.70245]
[1745519582120,23.75616818,151.84,151.78,25.70245]
[1745519582422,6.5857,151.8,151.78,25.70245]
[1745519582622,23.75616818,151.84,151.78,25.70245]
[1745519582822,6.5852,151.81,151.78,25.70245]
[1745519583019,23.75616818,151.84,151.78,25.70245]
[1745519583421,5.7818,151.89,151.78,25.70245]
[1745519583616,3.859,151.89,151.8,23.75616818]
[1745519583822,8.5097,151.89,151.85,6.5832]
[1745519584224,8.5097,151.89,151.84,25.46]
[1745519584428,8.5097,151.89,151.84,32.0435]
[1745519584725,6.582,151.88,151.84,32.0435]
[1745519585027,1.9279,151.89,151.81,25.46]
[1745519585228,6.5827,151.87,151.81,25.46]
[1745519585423,6.5827,151.87,151.83,6.5841]
[1745519585629,1.9279,151.89,151.81,25.46]
[1745519585825,3.8584,151.89,151.81,25.46]
[1745519586027,23.75616818,151.87,151.81,25.46]
[1745519586225,23.75616818,151.87,151.78,25.70245]
[1745519586527,6.5859,151.79,151.78,0.24245]
[1745519587030,25.46,151.83,151.78,0.24245]
[1745519587729,6.5843,151.83,151.79,6.72102717]
[1745519587924,49.21616818,151.87,151.79,25.46]
[1745519588335,6.5853,151.81,151.79,25.46]
[1745519588935,6.5855,151.8,151.79,25.46]
[1745519589141,23.75616818,151.84,151.79,6.73881277]
[1745519589337,23.75616818,151.84,151.78,0.24245]
[1745519589537,6.5859,151.79,151.78,0.24245]
[1745519590237,6.5855,151.8,151.78,0.24245]
[1745519590539,23.75616818,151.87,151.78,0.24245]
[1745519590733,25.46,151.86,151.79,13.32326971]
[1745519590935,25.46,151.86,151.78,0.24245]
[1745519591234,25.46,151.86,151.79,6.73778558]
[1745519591432,1.9666,151.88,151.78,0.24245]
[1745519591433,6.584,151.84,151.8,38.78298558]
[1745519591635,1.9666,151.88,151.8,32.0452]
[1745519591839,1.9666,151.88,151.81,6.73544429]
[1745519592035,6.5831,151.86,151.82,6.73544429]
[1745519592231,29.3184,151.89,151.8,49.21616818]
[1745519592536,6.5832,151.86,151.82,6.5844]
[1745519593039,6.5832,151.86,151.83,6.73556396]
[1745519593339,6.5832,151.86,151.82,6.5844]
[1745519593640,29.3184,151.89,151.83,6.73629769]
[1745519593838,29.3184,151.89,151.8,25.46]
[1745519594036,29.3184,151.89,151.81,6.73787391]
[1745519594237,29.3184,151.89,151.8,25.46]
[1745519594437,29.3184,151.89,151.81,6.73981286]
[1745519594637,3.8584,151.89,151.82,45.36261093]
[1745519594836,3.8584,151.89,151.83,6.73981286]
[1745519595040,6.5822,151.88,151.84,6.5835]
[1745519595341,3.8584,151.89,151.84,25.48]
[1745519595641,10.4402,151.89,151.85,6.5831]
[1745519595936,3.8584,151.89,151.85,6.5831]
[1745519596240,3.8584,151.89,151.84,25.48]
[1745519596638,29.3384,151.89,151.81,25.48]
[1745519596939,6.5846,151.82,151.78,25.72245]
[1745519597240,38.62279807,151.88,151.79,6.74478464]
[1745519597431,29.3384,151.89,151.8,13.32972373]
[1745519597741,29.3384,151.89,151.78,25.48]
[1745519597935,29.3384,151.89,151.79,13.32907215]
[1745519598139,29.3384,151.89,151.8,6.74337215]
[1745519598341,6.5841,151.84,151.79,6.5857]
[1745519598640,29.3384,151.89,151.8,13.32814403]
[1745519598937,6.5826,151.87,151.81,6.74050423]
[1745519599137,29.3384,151.89,151.82,38.80283008]
[1745519599439,29.3384,151.89,151.82,25.48]
[1745519600141,6.5838,151.84,151.82,25.48]
[1745519600341,29.3384,151.89,151.82,25.48]
[1745519601338,29.3384,151.89,151.79,25.48]
[1745519601544,38.62279807,151.86,151.79,25.48]
[1745519601740,1.9444,151.85,151.79,25.48]
[1745519601940,27.4244,151.85,151.78,0.25957]
[1745519602140,1.9444,151.85,151.78,0.25957]
[1745519603045,6.5842,151.83,151.78,6.84577]
[1745519603245,6.5842,151.83,151.78,0.25957]
[1745519603442,25.48,151.88,151.79,6.73966808]
[1745519603638,6.5833,151.85,151.8,32.0654]
[1745519603842,25.48,151.88,151.8,25.48]
[1745519604346,6.5845,151.83,151.8,25.48]
[1745519604549,64.10279807,151.88,151.8,25.48]
[1745519604747,38.62279807,151.85,151.78,0.25957]
[1745519604943,38.62279807,151.82,151.78,0.25957]
[1745519605144,6.5859,151.79,151.78,0.25957]
[1745519605544,3.9945,151.81,151.78,0.25957]
[1745519606449,6.5859,151.79,151.78,0.25957]
[1745519607345,6.5856,151.8,151.78,0.25957]
[1745519608047,3.9945,151.81,151.78,0.25957]
[1745519608445,6.587,151.77,151.74,25.48]
[1745519608851,3.9945,151.81,151.74,25.48]
[1745519609149,6.5865,151.78,151.74,32.0678]
[1745519609844,6.5868,151.77,151.74,32.0678]
[1745519610050,6.5868,151.77,151.74,25.48]
[1745519610251,3.9945,151.81,151.74,25.48]
[1745519610445,6.5866,151.78,151.74,25.48]
[1745519610947,6.5866,151.78,151.74,32.0678]
[1745519611144,6.5869,151.77,151.74,32.0678]
[1745519612250,6.5865,151.78,151.75,6.5876]
[1745519612444,6.5865,151.78,151.74,25.48]
[1745519612645,6.5865,151.78,151.73,473.98]
[1745519612846,3.9945,151.81,151.73,31.9283]
[1745519613341,6.5876,151.75,151.73,25.34]
[1745519614250,6.5874,151.76,151.73,31.9284]
[1745519614648,3.9945,151.81,151.73,31.9284]
[1745519614949,6.5881,151.74,151.73,25.34]
[1745519615145,3.9945,151.81,151.69,38.62279807]
[1745519615350,25.34,151.79,151.7,32.08582641]
[1745519615651,23.80338892,151.77,151.7,25.34]
[1745519616647,23.80338892,151.77,151.67,25.34]
[1745519616847,23.80338892,151.77,151.68,6.74924172]
[1745519617048,23.80338892,151.77,151.67,25.34]
[1745519617251,6.5888,151.73,151.69,6.5902]
[1745519617451,6.5888,151.73,151.67,25.34]
[1745519617651,6.5888,151.73,151.69,6.5902]
[1745519617851,25.34,151.75,151.67,25.34]
[1745519618053,29.68288892,151.74,151.67,25.34]
[1745519618349,29.68288892,151.74,151.66,474.3]
[1745519618350,6.59,151.7,151.64,25.34]
[1745519618653,29.68288892,151.74,151.65,6.74674316]
[1745519618851,29.68288892,151.74,151.66,6.74674316]
[1745519619056,23.80338892,151.71,151.64,25.34]
[1745519619256,6.5913,151.67,151.6,49.14338892]
[1745519619456,25.34,151.7,151.61,6.74492022]
[1745519619653,25.34,151.7,151.62,6.74492022]
[1745519619850,25.34,151.7,151.63,6.74492022]
[1745519620054,25.34,151.73,151.64,32.08511724]
[1745519620254,25.34,151.73,151.64,25.34]
[1745519620955,25.34,151.73,151.65,6.74106369]
[1745519621151,25.34,151.73,151.64,25.34]
[1745519621352,25.34,151.73,151.66,23.80338892]
[1745519621553,5.8795,151.74,151.66,23.80338892]
[1745519622052,5.8795,151.74,151.67,6.73826683]
[1745519622251,5.8795,151.74,151.66,23.80338892]
[1745519622556,6.5889,151.72,151.68,6.5904]
[1745519622755,6.5889,151.72,151.68,31.9304]
[1745519623255,6.5886,151.73,151.69,6.5899]
[1745519623456,3.8712,151.74,151.68,25.34]
[1745519623754,6.5894,151.71,151.68,31.9305]
[1745519624055,6.5894,151.71,151.68,25.34]
[1745519624256,3.8712,151.74,151.68,25.34]
[1745519624957,10.4596,151.74,151.68,31.9303]
[1745519625155,3.8712,151.74,151.68,25.34]
[1745519625357,2.0226,151.79,151.69,30.53300649]
[1745519625559,8.6088,151.79,151.73,6.5882]
[1745519625750,8.6088,151.79,151.73,31.9282]
[1745519625950,8.6088,151.79,151.73,25.34]
[1745519626254,8.6088,151.79,151.74,6.588]
[1745519626756,35.8638,151.81,151.73,25.34]
[1745519626947,10.5238,151.81,151.73,25.34]
[1745519627252,3.9384,151.81,151.77,6.5864]
[1745519627958,3.9384,151.81,151.78,6.5863]
[1745519628762,3.9384,151.81,151.77,6.5866]
[1745519629254,3.9384,151.81,151.75,23.80338892]
[1745519629457,2.0447,151.81,151.79,6.5859]
[1745519629658,2.0447,151.81,151.77,25.34]
[1745519629960,2.0447,151.81,151.78,6.5861]
[1745519632563,8.6298,151.81,151.77,31.9266]
[1745519633164,2.0447,151.81,151.77,31.9266]
[1745519633366,2.0447,151.81,151.78,6.5863]
[1745519633763,1.919,151.84,151.77,25.34]
[1745519634164,6.585,151.82,151.77,25.34]
[1745519634367,1.919,151.84,151.77,25.34]
[1745519634665,6.5858,151.8,151.77,25.34]
[1745519634966,1.919,151.84,151.77,25.34]
[1745519636065,6.5853,151.81,151.77,25.34]
[1745519636466,1.919,151.84,151.77,25.34]
[1745519637360,6.5862,151.79,151.74,6.5878]
[1745519637565,25.34,151.83,151.74,31.9278]
[1745519638263,25.34,151.83,151.74,25.34]
[1745519639963,6.5862,151.79,151.75,6.5874]
[1745519640771,25.34,151.83,151.74,25.34]
[1745519641374,6.5862,151.79,151.74,31.9277]
[1745519641670,6.5862,151.79,151.74,25.34]
[1745519641971,25.34,151.83,151.74,25.34]
[1745519642172,1.919,151.84,151.75,30.53302115]
[1745519642368,1.919,151.84,151.76,6.72963223]
[1745519642569,6.5844,151.83,151.79,6.5855]
[1745519642769,6.5844,151.83,151.79,31.9255]
[1745519644069,6.5847,151.82,151.79,25.34]
[1745519644277,1.9882,151.85,151.79,25.34]
[1745519644574,6.5854,151.81,151.79,25.34]
[1745519645175,6.5848,151.82,151.79,25.34]
[1745519645676,6.5848,151.82,151.79,31.9259]
[1745519646174,6.5848,151.82,151.79,25.34]
[1745519646576,6.5852,151.81,151.79,25.34]
[1745519647973,6.5855,151.8,151.79,25.34]
[1745519648277,25.79158892,151.85,151.76,25.32]
[1745519648478,25.79158892,151.85,151.76,31.9069]
[1745519648971,6.5858,151.8,151.76,31.9069]
[1745519649373,1.9882,151.85,151.76,25.32]
[1745519649576,6.584,151.84,151.78,23.80338892]
[1745519650177,8.5717,151.85,151.78,23.80338892]
[1745519650674,8.5717,151.85,151.8,6.5852]
[1745519650979,6.5838,151.84,151.8,6.5852]
[1745519651978,6.5842,151.83,151.8,6.5852]
[1745519652277,6.5842,151.83,151.8,31.9052]
[1745519652475,23.80338892,151.92,151.81,30.52239124]
[1745519652680,3.8091,151.92,151.84,23.80338892]
[1745519652976,3.8091,151.92,151.86,6.5825]
[1745519653177,6.5814,151.9,151.86,6.5825]
[1745519653580,6.5814,151.9,151.87,6.5823]
[1745519654680,6.5816,151.89,151.86,6.5827]
[1745519655277,49.12338892,151.97,151.85,25.32]
[1745519655478,49.12338892,151.97,151.87,23.80338892]
[1745519655777,6.5805,151.92,151.89,6.5814]
[1745519655975,6.5805,151.92,151.89,25.32]
[1745519656170,49.12338892,151.97,151.89,25.32]
[1745519656978,6.5806,151.92,151.89,25.32]
[1745519657882,6.58,151.93,151.89,25.32]
[1745519658383,6.5803,151.92,151.89,25.32]
[1745519658683,49.12338892,151.97,151.89,25.32]
[1745519658984,6.5807,151.92,151.89,25.32]
[1745519659279,14.85048785,151.91,151.84,25.32]
[1745519659484,6.5825,151.87,151.84,25.32]
[1745519659687,18.69588785,151.91,151.84,25.32]
[1745519660077,6.582,151.88,151.84,31.9035]
[1745519660680,18.69588785,151.91,151.84,25.32]
[1745519660885,14.85048785,151.89,151.84,25.32]
[1745519661286,6.5827,151.87,151.84,25.32]
[1745519661687,27.61221983,151.91,151.84,25.32]
[1745519662286,6.5845,151.83,151.81,25.32]
[1745519662487,6.5845,151.83,151.8,25.32]
[1745519663989,6.5839,151.84,151.8,31.9054]
[1745519664189,25.32,151.89,151.8,31.9054]
[1745519664490,6.5828,151.87,151.82,6.5846]
[1745519664886,6.5828,151.87,151.8,25.32]
[1745519665088,6.5828,151.87,151.83,6.5842]
[1745519665283,27.61221983,151.91,151.83,6.5842]
[1745519665485,27.61221983,151.91,151.84,25.32]
[1745519666093,6.5831,151.86,151.84,25.32]
[1745519666487,27.61221983,151.91,151.84,25.32]
[1745519666993,3.8454,151.91,151.84,25.32]
[1745519667391,6.5819,151.89,151.85,6.5832]
[1745519667797,3.8454,151.91,151.84,25.32]
[1745519668594,6.5813,151.9,151.86,6.5826]
[1745519669286,6.5816,151.89,151.86,6.5826]
[1745519670294,23.76681983,151.97,151.85,23.76681983]
[1745519670495,25.3,151.96,151.86,6.71990993]
[1745519670792,6.5806,151.92,151.88,6.5816]
[1745519670988,6.5806,151.92,151.89,25.3]
[1745519671491,6.5806,151.92,151.89,31.8813]
[1745519671692,25.3,151.96,151.89,25.3]
[1745519673295,6.5805,151.92,151.89,25.3]
[1745519673490,25.3,151.96,151.89,25.3]
[1745519673895,6.5811,151.9,151.89,25.3]
[1745519674097,25.3,151.96,151.89,25.3]
[1745519674590,6.581,151.91,151.89,25.3]
[1745519675196,25.3,151.96,151.89,25.3]
[1745519677595,23.76681983,151.94,151.89,25.3]
[1745519677793,23.76681983,151.94,151.86,25.3]
[1745519678295,23.76681983,151.94,151.86,31.8826]
[1745519678498,25.3,151.96,151.86,25.3]
[1745519678796,6.5801,151.93,151.87,6.71428586]
[1745519678996,6.5801,151.93,151.86,25.3]
[1745519679399,5.6951,151.97,151.88,23.76681983]
[1745519679597,5.6951,151.97,151.86,25.3]
[1745519679796,5.6951,151.97,151.87,6.71229389]
[1745519679990,5.6951,151.97,151.88,6.71229389]
[1745519680192,5.6951,151.97,151.86,25.3]
[1745519680389,5.6951,151.97,151.87,6.71277569]
[1745519680697,5.6951,151.97,151.88,23.76681983]
[1745519680900,6.5798,151.93,151.89,6.5812]
[1745519681097,5.6951,151.97,151.9,25.3]
[1745519681297,6.5796,151.94,151.9,31.8809]
[1745519682006,6.5791,151.95,151.91,6.5804]
[1745519682499,3.7999,151.97,151.9,25.3]
[1745519682706,6.579,151.95,151.9,25.3]
[1745519682905,3.7999,151.97,151.9,25.3]
[1745519683407,3.7999,151.97,151.9,40.13615456]
[1745519683907,6.5801,151.93,151.9,40.13615456]
[1745519684413,2.0218,152.01,151.92,14.83615456]
[1745519684904,6.5788,151.96,151.92,21.41615456]
[1745519685198,2.0218,152.01,151.92,14.83615456]
[1745519685501,2.0218,152.01,151.93,6.70267021]
[1745519685707,2.0218,152.01,151.94,25.3]
[1745519686202,6.5778,151.98,151.94,31.8792]
[1745519686406,14.83615456,152.04,151.96,14.83615456]
[1745519686704,6.5758,152.03,151.99,6.5772]
[1745519686902,6.5758,152.03,151.99,25.3]
[1745519687106,1.9273,152.05,151.99,25.3]
[1745519687507,6.5762,152.02,151.99,25.3]
[1745519687810,1.9625,152.07,151.99,25.3]
[1745519688607,6.5752,152.04,151.99,31.8772]
[1745519689306,14.83615456,152.08,152.0,14.83615456]
[1745519689607,1.9052,152.09,152.0,14.83615456]
[1745519690209,6.5752,152.04,152.0,14.83615456]
[1745519690609,14.83615456,152.06,151.99,25.3]
[1745519690905,14.83615456,152.02,151.95,473.88]
[1745519691210,6.5785,151.96,151.94,25.28]
[1745519691811,14.83615456,151.98,151.9,14.83615456]
[1745519692006,14.83615456,151.98,151.91,25.28]
[1745519692205,3.9697,152.02,151.91,25.28]
[1745519692206,14.83615456,151.96,151.91,25.28]
[1745519692704,6.5801,151.93,151.91,25.28]
[1745519692911,14.83615456,151.96,151.91,25.28]
[1745519693210,6.5796,151.94,151.91,25.28]
[1745519693707,14.83615456,151.96,151.91,25.28]
[1745519694010,6.5791,151.95,151.91,25.28]
[1745519694206,25.28,151.99,151.91,25.28]
[1745519694511,14.83615456,152.0,151.92,14.83615456]
[1745519694810,6.5779,151.98,151.93,6.5796]
[1745519695011,44.08585456,152.02,151.93,6.5796]
[1745519695305,44.08585456,152.02,151.94,14.83615456]
[1745519695506,44.08585456,152.02,151.95,25.28]
[1745519695507,6.577,152.0,151.95,25.28]
[1745519696107,6.5773,151.99,151.95,25.28]
[1745519696608,6.5781,151.97,151.95,25.28]
[1745519696808,14.83615456,151.98,151.91,25.28]
[1745519697012,1.9402,151.97,151.91,25.28]
[1745519699114,6.5798,151.94,151.91,25.28]
[1745519701015,1.9402,151.97,151.88,25.26]
[1745519701416,6.5805,151.92,151.88,31.8418]
[1745519701612,6.5805,151.92,151.88,25.26]
[1745519701817,23.74642346,151.95,151.88,25.26]
[1745519702018,1.8824,151.94,151.88,25.26]
[1745519702317,23.74642346,151.92,151.85,25.26]
[1745519702512,6.5829,151.86,151.85,25.26]
[1745519702712,49.02642346,151.92,151.82,25.28]
[1745519703720,6.5842,151.83,151.82,25.28]
[1745519704018,49.02642346,151.92,151.82,25.28]
[1745519704213,6.5822,151.88,151.83,6.5841]
[1745519704410,49.02642346,151.92,151.82,25.28]
[1745519705021,6.5829,151.86,151.82,31.8645]
[1745519705622,49.02642346,151.92,151.83,6.584]
[1745519705816,49.02642346,151.92,151.82,25.28]
[1745519706121,6.5828,151.87,151.82,31.8643]
[1745519706323,49.02642346,151.92,151.82,25.28]
[1745519706723,6.5823,151.88,151.83,6.5838]
[1745519707325,6.5814,151.9,151.84,30.46502318]
[1745519707626,1.8824,151.94,151.85,6.71756958]
[1745519707824,1.8824,151.94,151.86,31.8627]
[1745519708122,1.8824,151.94,151.86,25.28]
[1745519708524,6.5816,151.89,151.86,25.28]
[1745519710226,6.5816,151.89,151.86,31.8627]
[1745519710424,6.5813,151.9,151.86,31.8627]
[1745519710630,1.8824,151.94,151.86,31.8627]
[1745519711026,6.5818,151.89,151.86,25.28]
[1745519711829,6.582,151.88,151.86,25.28]
[1745519712226,6.5824,151.87,151.86,25.28]
[1745519712929,1.8824,151.94,151.86,25.28]
[1745519713422,6.5818,151.89,151.86,31.8625]
[1745519713923,1.8824,151.94,151.88,6.582]
[1745519714128,1.8824,151.94,151.87,23.74642346]
[1745519715028,1.9402,151.97,151.89,6.5812]
[1745519715227,1.9402,151.97,151.9,25.28]
[1745519715422,1.9759,152.02,151.95,6.5787]
[1745519715627,1.8541,152.05,151.96,49.02642346]
[1745519715928,6.5752,152.04,152.0,6.5765]
[1745519716128,1.8487,152.07,152.0,25.28]
[1745519716329,25.28,152.09,152.0,25.28]
[1745519716629,6.5745,152.06,152.0,25.28]
[1745519716928,25.28,152.09,152.0,25.28]
[1745519717123,23.74642346,152.08,152.0,25.28]
[1745519717426,25.62212346,152.08,152.0,25.28]
[1745519717629,6.5758,152.03,152.0,25.28]
[1745519717930,25.62212346,152.08,152.0,25.28]
[1745519718133,6.5749,152.05,152.0,25.28]
[1745519718628,6.5737,152.08,152.0,25.28]
[1745519718929,3.83,152.1,152.0,25.28]
[1745519719131,6.574,152.07,152.02,6.5757]
[1745519719431,6.574,152.07,152.0,25.28]
[1745519719626,3.83,152.1,152.0,25.28]
[1745519720229,6.5736,152.08,152.03,6.5752]
[1745519720430,6.5736,152.08,152.04,25.28]
[1745519720632,3.83,152.1,152.04,25.28]
[1745519720831,3.83,152.1,152.04,55.60112346]
[1745519721224,3.83,152.1,152.04,49.02642346]
[1745519721430,6.5734,152.08,152.04,49.02642346]
[1745519722132,6.573,152.09,152.04,49.02642346]
[1745519722930,6.5736,152.08,152.04,49.02642346]
[1745519723330,1.8757,152.13,152.04,49.02642346]
[1745519723531,6.574,152.07,152.04,25.28]
[1745519724133,1.8757,152.13,152.04,25.28]
[1745519724335,1.8757,152.13,152.04,49.02642346]
[1745519725034,6.5728,152.1,152.05,6.5744]
[1745519725230,3.8419,152.14,152.04,25.28]
[1745519725430,6.5719,152.12,152.07,6.5737]
[1745519725630,3.8419,152.14,152.06,14.80513546]
[1745519725631,3.8419,152.14,152.08,25.26]
[1745519726031,6.5721,152.11,152.08,25.26]
[1745519727034,6.5717,152.12,152.08,25.26]
[1745519727833,2.0406,152.18,152.1,21.37763546]
[1745519728033,18.67353546,152.21,152.12,14.80513546]
[1745519728230,6.5693,152.18,152.13,25.26]
[1745519728428,3.8684,152.21,152.14,21.37583546]
[1745519728629,6.5689,152.19,152.14,21.37583546]
[1745519728935,14.80513546,152.17,152.13,25.26]
[1745519730137,14.80513546,152.19,152.13,25.26]
[1745519730438,18.67353546,152.21,152.13,25.26]
[1745519730636,6.5694,152.18,152.13,25.26]
[1745519730837,18.67353546,152.21,152.13,25.26]
[1745519731033,14.80513546,152.19,152.13,25.26]
[1745519731734,18.67353546,152.21,152.13,25.26]
[1745519732137,6.5703,152.16,152.13,25.26]
[1745519732540,18.67353546,152.21,152.13,25.26]
[1745519732837,6.5704,152.15,152.13,25.26]
[1745519733839,6.5707,152.14,152.13,25.26]
[1745519734437,6.5704,152.15,152.13,25.26]
[1745519734637,18.67353546,152.21,152.13,25.26]
[1745519735037,14.80513546,152.19,152.13,25.26]
[1745519736041,6.5707,152.14,152.13,25.26]
[1745519738444,6.5705,152.15,152.13,25.26]
[1745519738644,40.02513546,152.19,152.13,25.26]
[1745519739342,6.5707,152.14,152.13,25.26]
[1745519740447,14.80513546,152.15,152.1,25.22]
[1745519741245,14.80513546,152.13,152.07,25.22]
[1745519741449,14.80513546,152.11,152.07,25.22]
[1745519741654,14.80513546,152.09,152.03,25.22]
[1745519742248,6.5745,152.06,152.03,25.22]
[1745519742652,14.80513546,152.09,152.03,25.22]
[1745519742943,6.5734,152.08,152.03,31.7954]
[1745519743151,14.80513546,152.11,152.03,25.22]
[1745519743348,40.02513546,152.13,152.04,14.80513546]
[1745519743548,14.80513546,152.13,152.04,14.80513546]
[1745519743845,3.9153,152.14,152.08,6.573]
[1745519744052,3.9153,152.14,152.08,31.793]
[1745519744353,6.5705,152.15,152.1,21.37763546]
[1745519744750,43.93193546,152.19,152.08,25.22]
[1745519744951,6.571,152.14,152.1,6.5725]
[1745519745154,43.93193546,152.19,152.08,40.02513546]
[1745519745453,6.5713,152.13,152.09,6.5726]
[1745519745863,14.80513546,152.17,152.08,40.02513546]
[1745519746063,14.80513546,152.15,152.08,25.22]
[1745519747062,6.5723,152.11,152.08,25.22]
[1745519747357,14.80513546,152.17,152.08,25.22]
[1745519747759,6.5715,152.13,152.08,40.02513546]
[1745519747957,14.80513546,152.17,152.08,40.02513546]
[1745519748764,6.5706,152.15,152.08,40.02513546]
[1745519748963,14.80513546,152.17,152.08,40.02513546]
[1745519749765,6.5711,152.14,152.1,6.5722]
[1745519750263,6.5709,152.14,152.1,6.5722]
[1745519750560,14.80513546,152.17,152.08,40.02513546]
[1745519750764,6.5719,152.12,152.08,46.59823546]
[1745519751063,14.80513546,152.15,152.08,25.22]
[1745519751464,6.5723,152.11,152.08,25.22]
[1745519751665,14.80513546,152.17,152.08,40.02513546]
[1745519751961,29.1268,152.19,152.1,14.80513546]
[1745519751962,18.71193546,152.19,152.1,14.80513546]
[1745519752165,6.5701,152.16,152.12,6.5715]
[1745519752365,18.71193546,152.19,152.13,25.22]
[1745519752366,3.9068,152.19,152.13,25.22]
[1745519752761,6.5697,152.17,152.13,31.7911]
[1745519753161,3.9068,152.19,152.13,25.22]
[1745519753364,10.4757,152.19,152.14,6.5705]
[1745519753965,42.06533546,152.22,152.13,25.22]
[1745519754361,14.80513546,152.2,152.13,25.22]
[1745519754667,14.80513546,152.18,152.13,25.22]
[1745519754864,6.5707,152.15,152.13,25.22]
[1745519755166,14.80513546,152.18,152.13,25.22]
[1745519755364,6.5705,152.15,152.13,25.22]
[1745519755665,14.80513546,152.18,152.13,25.22]
[1745519755865,14.80513546,152.16,152.13,25.22]
[1745519756063,14.80513546,152.16,152.1,25.22]
[1745519756270,14.80513546,152.12,152.07,25.22]
[1745519756567,6.5733,152.08,152.07,25.22]
[1745519757462,14.80513546,152.14,152.07,25.22]
[1745519757761,1.9913,152.15,152.07,40.02513546]
[1745519758067,6.572,152.12,152.07,46.59863546]